bitfinex-derivatives/quotes_SOLF0:USTF0_20241021
["timestamp","ask_amount","ask_price","bid_price","bid_amount"]
[1729526332955,3.0272,165.19,165.16,3.0276]
[1729526333154,2.5743,165.21,165.13,5.1]
[1729526333955,3.0272,165.19,165.17,3.0276]
[1729526334151,3.08137936,165.18,165.13,5.1]
[1729526334354,2.5743,165.21,165.13,5.1]
[1729526334553,2.5743,165.21,165.16,3.0277]
[1729526336755,8.62199552,165.26,165.13,5.1]
[1729526337063,5.1,165.29,165.13,5.1]
[1729526337261,3.0267,165.23,165.2,3.0269]
[1729526337465,3.00302671,165.28,165.17,5.1]
[1729526338059,3.0268,165.22,165.19,3.0272]
[1729526338459,5.1,165.25,165.19,3.0272]
[1729526338757,2.5716,165.24,165.19,3.0272]
[1729526339157,3.0268,165.22,165.19,3.0272]
[1729526339758,3.0261,165.26,165.2,5.1]
[1729526339966,3.9275,165.29,165.2,5.1]
[1729526340267,3.0258,165.27,165.2,5.1]
[1729526340567,3.9275,165.29,165.2,5.1]
[1729526340754,3.9275,165.29,165.24,3.0262]
[1729526341560,3.0258,165.27,165.24,3.0262]
[1729526341769,8.644434,165.34,165.28,3.0256]
[1729526341770,5.1,165.33,165.28,3.0256]
[1729526342065,5.1,165.33,165.25,5.1]
[1729526342265,3.025,165.32,165.25,5.1]
[1729526342468,5.1,165.33,165.28,3.0255]
[1729526343073,5.1,165.33,165.25,5.1]
[1729526343367,3.0259,165.27,165.08,6.0584]
[1729526343564,8.9421,165.26,165.19,3.0271]
[1729526343767,8.9421,165.26,165.13,5.12]
[1729526344572,3.8221,165.26,165.13,5.12]
[1729526344770,8.9421,165.26,165.13,5.12]
[1729526345160,8.9421,165.26,165.09,8.6655]
[1729526345367,8.9421,165.26,165.17,3.0275]
[1729526345566,3.0269,165.21,165.17,3.0275]
[1729526346576,8.9421,165.26,165.17,3.0275]
[1729526346761,8.9421,165.26,165.14,5.12]
[1729526346968,8.9421,165.26,165.2,3.0269]
[1729526347368,3.0273,165.19,165.11,5.12]
[1729526347565,5.12,165.22,165.11,5.12]
[1729526348075,3.0274,165.19,165.14,3.028]
[1729526348271,3.0274,165.19,165.11,5.12]
[1729526348272,5.12,165.22,165.11,5.12]
[1729526348463,3.0276,165.18,165.11,5.12]
[1729526348771,18.17,165.27,165.11,5.12]
[1729526348772,5.12,165.34,165.12,6.057]
[1729526348971,3.026,165.26,165.12,6.057]
[1729526349175,2.6376,165.31,165.12,6.057]
[1729526349669,3.026,165.26,165.22,3.0266]
[1729526350268,3.0264,165.24,165.2,3.0269]
[1729526351068,5.58,165.29,165.19,5.58]
[1729526351267,3.0262,165.25,165.21,3.0268]
[1729526351566,5.58,165.29,165.19,5.58]
[1729526351767,3.0261,165.25,165.22,3.0265]
[1729526351971,3.0261,165.25,165.19,5.58]
[1729526352173,5.58,165.29,165.19,5.58]
[1729526352373,5.58,165.29,165.22,3.0267]
[1729526352869,3.026,165.26,165.22,3.0266]
[1729526353373,8.2176,165.31,165.19,5.58]
[1729526353563,8.67140689,165.33,165.19,5.58]
[1729526354065,3.025,165.32,165.28,3.0256]
[1729526354469,3.025,165.32,165.27,5.58]
[1729526354470,8.67140689,165.37,165.27,5.58]
[1729526354664,3.0243,165.35,165.31,3.0249]
[1729526354871,3.0243,165.35,165.27,5.58]
[1729526354872,3.7477,165.39,165.27,5.58]
[1729526355672,16.13464899,165.4,165.27,5.58]
[1729526355872,3.0237,165.39,165.34,3.0243]
[1729526356074,7.4632421,165.4,165.15,3.09753034]
[1729526356279,7.4632421,165.4,165.23,1.3347]
[1729526356481,16.1220147,165.4,165.3,3.0252]
[1729526356776,7.4632421,165.4,165.3,3.0252]
[1729526357078,5.58,165.39,165.3,3.0252]
[1729526357382,3.0246,165.34,165.3,3.0252]
[1729526357675,3.0246,165.34,165.29,8.6053]
[1729526358478,8.56600605,165.39,165.29,5.58]
[1729526359477,3.0248,165.33,165.29,5.58]
[1729526360874,3.0249,165.32,165.29,5.58]
[1729526361280,14.23270057,165.39,165.29,8.6053]
[1729526361583,3.0248,165.33,165.29,8.6053]
[1729526361781,14.23270057,165.39,165.29,5.58]
[1729526361980,3.025,165.32,165.29,5.58]
[1729526362483,3.0247,165.33,165.29,8.6053]
[1729526363276,3.025,165.32,165.29,5.58]
[1729526363482,14.23270057,165.39,165.29,5.58]
[1729526363677,5.58,165.39,165.29,5.58]
[1729526363875,3.025,165.32,165.29,5.58]
[1729526364975,3.025,165.32,165.29,8.6053]
[1729526365782,14.23270057,165.39,165.29,5.58]
[1729526365984,3.0251,165.31,165.29,5.58]
[1729526367274,14.23270057,165.39,165.29,5.58]
[1729526367482,3.0251,165.31,165.29,5.58]
[1729526367687,8.65270057,165.39,165.29,5.58]
[1729526367878,7.4632421,165.4,165.29,5.58]
[1729526368078,3.024,165.37,165.29,5.58]
[1729526369088,3.024,165.37,165.33,3.0245]
[1729526370386,3.024,165.37,165.34,3.0244]
[1729526370681,3.0239,165.37,165.29,5.58]
[1729526371487,3.0239,165.37,165.34,3.0244]
[1729526372187,7.4632421,165.4,165.39,3.0236]
[1729526372394,7.4632421,165.4,165.35,5.58]
[1729526373989,7.4632421,165.4,165.39,3.0236]
[1729526375188,7.4632421,165.4,165.37,8.6038]
[1729526375585,7.4632421,165.4,165.3,5.6416988]
[1729526375889,7.4632421,165.4,165.31,5.58]
[1729526376192,10.4866421,165.4,165.36,3.024]
[1729526376392,10.4866421,165.4,165.3,2.5643]
[1729526376698,10.4866421,165.4,165.31,5.58]
[1729526376896,10.4866421,165.4,165.36,3.024]
[1729526377086,10.4866421,165.4,165.31,5.58]
[1729526378087,10.4866421,165.4,165.36,3.024]
[1729526378485,3.0236,165.39,165.36,3.024]
[1729526378996,7.4632421,165.4,165.35,3.0243]
[1729526379188,3.0239,165.38,165.35,3.0243]
[1729526379386,7.4632421,165.4,165.33,5.54]
[1729526379590,7.4632421,165.4,165.34,3.0243]
[1729526379784,3.0237,165.39,165.33,5.54]
[1729526379988,7.4632421,165.4,165.33,5.54]
[1729526380195,7.4632421,165.4,165.36,3.0241]
[1729526380390,3.0237,165.39,165.36,3.0241]
[1729526380693,7.4632421,165.4,165.35,3.0242]
[1729526381090,3.024,165.37,165.34,3.0244]
[1729526381297,3.024,165.37,165.33,5.54]
[1729526381298,7.4632421,165.4,165.33,5.54]
[1729526382288,7.4632421,165.4,165.33,8.5647]
[1729526383297,7.4632421,165.4,165.32,5.54]
[1729526383795,3.0242,165.36,165.32,5.54]
[1729526384187,3.0242,165.36,165.33,3.0246]
[1729526384388,3.0243,165.35,165.32,5.54]
[1729526384589,7.4632421,165.4,165.32,5.54]
[1729526384786,7.4632421,165.4,165.32,8.5648]
[1729526384986,7.4632421,165.4,165.26,8.009]
[1729526385506,3.025,165.32,165.29,3.0254]
[1729526385991,5.54,165.37,165.2,71.494]
[1729526386197,5.54,165.37,165.21,8.0328]
[1729526386198,3.0253,165.3,165.21,8.0328]
[1729526386590,3.0253,165.3,165.27,3.0256]
[1729526386799,3.0253,165.3,165.26,5.54]
[1729526386996,5.54,165.37,165.26,5.54]
[1729526387296,3.0251,165.31,165.28,3.0256]
[1729526388395,5.54,165.37,165.28,3.0256]
[1729526388600,5.54,165.36,165.27,3.0257]
[1729526388796,5.54,165.35,165.25,5.54]
[1729526388992,2.4981,165.34,165.25,5.54]
[1729526389312,2.4981,165.39,165.25,8.62138142]
[1729526389594,3.0241,165.36,165.25,8.62138142]
[1729526390195,3.0241,165.36,165.33,3.0245]
[1729526390996,3.0241,165.36,165.34,3.0245]
[1729526391999,1.2464,165.39,165.34,3.0245]
[1729526392802,1.2464,165.39,165.35,3.0243]
[1729526393197,1.2464,165.39,165.31,5.54]
[1729526393396,7.4632421,165.4,165.31,5.54]
[1729526394696,7.4632421,165.4,165.33,3.0245]
[1729526394906,7.4632421,165.4,165.31,5.54]
[1729526395406,7.4632421,165.4,165.38,3.0236]
[1729526395607,8.17284872,165.41,165.36,5.54]
[1729526396304,7.75606348,165.42,165.36,5.54]
[1729526396702,10.77916348,165.42,165.37,3.0238]
[1729526396998,10.77916348,165.42,165.36,5.54]
[1729526397205,7.75606348,165.42,165.36,5.54]
[1729526397400,3.0233,165.41,165.38,3.0237]
[1729526397703,7.75606348,165.42,165.36,5.54]
[1729526398404,7.75606348,165.42,165.4,3.0233]
[1729526400311,7.75606348,165.42,165.36,5.54]
[1729526400603,7.75606348,165.42,165.29,2.5943]
[1729526400796,10.77916348,165.42,165.39,3.0235]
[1729526401999,7.53129141,165.43,165.39,3.0235]
[1729526403009,3.0231,165.42,165.39,3.0235]
[1729526404309,7.53129141,165.43,165.38,8.5636]
[1729526404499,7.53129141,165.43,165.38,5.54]
[1729526404907,3.023,165.42,165.38,5.54]
[1729526405309,3.0232,165.41,165.38,8.5636]
[1729526405504,7.53129141,165.43,165.38,5.54]
[1729526405805,3.0238,165.38,165.35,3.0242]
[1729526406014,3.0238,165.38,165.36,5.54]
[1729526406309,7.53129141,165.43,165.29,2.5943]
[1729526406502,3.0244,165.35,165.32,3.0248]
[1729526406704,3.0244,165.35,165.32,5.54]
[1729526407213,3.03212856,165.41,165.3,5.54]
[1729526407407,6.7618,165.4,165.25,3.05391414]
[1729526407605,6.7618,165.4,165.24,67.959]
[1729526407606,3.0248,165.33,165.29,3.0252]
[1729526408401,6.7618,165.4,165.24,67.959]
[1729526408604,6.7618,165.4,165.24,1.3216]
[1729526408806,6.7618,165.4,165.19,68.18951076]
[1729526409115,24.9318,165.4,165.2,5.34]
[1729526409314,24.9318,165.4,165.19,2.5858]
[1729526409612,32.83682808,165.39,165.2,5.34]
[1729526409816,24.2172,165.39,165.2,5.34]
[1729526410017,3.026,165.26,165.22,3.0266]
[1729526410511,5.34,165.32,165.21,8.3667]
[1729526410721,2.5968,165.31,165.21,5.34]
[1729526411319,5.57488093,165.31,165.21,5.34]
[1729526411513,3.0261,165.26,165.21,5.34]
[1729526411709,5.57488093,165.31,165.14,65.36]
[1729526411908,5.57488093,165.31,165.15,8.36695293]
[1729526411909,5.34,165.28,165.15,8.36695293]
[1729526412107,5.34,165.28,165.15,8.30001041]
[1729526412408,7.9368,165.31,165.21,3.0268]
[1729526412610,3.0261,165.25,165.21,3.0268]
[1729526412808,3.0261,165.25,165.2,5.34]
[1729526413104,5.34,165.27,165.15,2.96001041]
[1729526413311,5.34,165.27,165.16,5.34]
[1729526413312,1.2755,165.26,165.16,5.34]
[1729526413510,1.2755,165.26,165.17,8.3696791]
[1729526413710,1.2755,165.26,165.16,5.34]
[1729526413901,1.2755,165.26,165.14,3.03058782]
[1729526414104,1.2755,165.26,165.13,5.34]
[1729526414412,1.2755,165.26,165.13,8.34665814]
[1729526414719,3.0276,165.18,165.13,8.34665814]
[1729526415016,5.34,165.22,165.12,5.34]
[1729526415212,5.6069,165.17,165.12,3.08035405]
[1729526415515,5.6069,165.17,165.11,5.34]
[1729526415911,2.5791,165.17,165.12,2.98914939]
[1729526416218,2.5791,165.17,165.1,5.34]
[1729526416513,5.6067,165.17,165.1,8.36641907]
[1729526417010,5.6067,165.17,165.12,3.0284]
[1729526418306,3.0279,165.16,165.12,3.0285]
[1729526418613,3.0279,165.16,165.1,8.36641907]
[1729526418614,2.5791,165.17,165.1,8.36641907]
[1729526418910,5.6068,165.17,165.12,3.0285]
[1729526419413,3.0282,165.14,165.1,3.0288]
[1729526419811,3.0282,165.14,165.1,6.0695268]
[1729526420007,3.0282,165.14,165.1,3.0288]
[1729526420814,1.3213,165.16,165.07,5.34]
[1729526421815,1.3213,165.16,165.13,3.0283]
[1729526422114,1.3213,165.16,165.13,6.12584609]
[1729526422312,1.3213,165.16,165.07,5.34]
[1729526422910,3.0281,165.15,165.11,3.0286]
[1729526423115,1.3213,165.16,165.07,5.34]
[1729526423510,1.3213,165.16,165.09,3.029]
[1729526424010,1.3213,165.16,165.07,5.34]
[1729526424011,3.0285,165.13,165.07,5.34]
[1729526424617,3.0284,165.13,165.07,5.34]
[1729526424822,3.0284,165.13,165.06,5.34]
[1729526425023,1.3213,165.16,165.08,3.0292]
[1729526426017,5.34,165.15,165.08,3.0292]
[1729526426423,5.34,165.15,165.09,3.0289]
[1729526426623,5.34,165.15,165.05,5.34]
[1729526426822,5.34,165.15,165.01,2.5174]
[1729526427017,3.0287,165.11,165.04,5.34]
[1729526427318,1.3213,165.16,165.04,5.34]
[1729526427723,2.5791,165.17,165.04,5.34]
[1729526428521,3.0279,165.16,165.12,3.0284]
[1729526428718,3.0279,165.16,165.12,6.10344363]
[1729526428925,3.0279,165.16,165.12,3.0284]
[1729526429425,2.5791,165.17,165.12,3.0284]
[1729526430222,2.5791,165.17,165.09,8.43625607]
[1729526430430,2.5791,165.17,165.11,3.0286]
[1729526431015,3.0281,165.15,165.11,3.0286]
[1729526432122,3.0279,165.16,165.11,3.0286]
[1729526432425,2.5791,165.17,165.11,3.0286]
[1729526432823,3.0281,165.15,165.11,3.0286]
[1729526433426,2.5791,165.17,165.09,3.07625607]
[1729526433626,2.5791,165.17,165.08,5.36]
[1729526434027,5.6067,165.17,165.14,3.028]
[1729526434328,2.5791,165.17,165.1,3.00781268]
[1729526434524,2.5791,165.17,165.04,6.0597]
[1729526434840,2.5791,165.17,165.05,5.36]
[1729526435419,3.0284,165.13,165.05,5.36]
[1729526436829,3.0284,165.13,165.1,3.0288]
[1729526437328,2.5791,165.17,165.1,5.36]
[1729526437731,3.0278,165.16,165.12,3.0285]
[1729526437928,2.5791,165.17,165.1,5.36]
[1729526438131,1.2364,165.2,165.11,6.0574]
[1729526438326,3.0266,165.23,165.11,6.0574]
[1729526438529,5.3,165.24,165.11,6.0574]
[1729526439033,3.0268,165.22,165.18,3.0273]
[1729526439228,5.3,165.24,165.18,3.0273]
[1729526439535,5.3,165.24,165.17,3.0275]
[1729526440032,3.0271,165.2,165.16,3.0276]
[1729526440236,3.0271,165.2,165.15,5.3]
[1729526440237,5.3,165.24,165.15,5.3]
[1729526440431,5.3,165.24,165.09,3.03836671]
[1729526440633,5.3,165.24,165.13,3.0283]
[1729526440929,18.17,165.23,165.13,3.0283]
[1729526441130,3.0278,165.17,165.13,3.0283]
[1729526441325,5.3,165.19,165.13,3.0283]
[1729526441529,3.9719,165.18,165.13,3.0283]
[1729526441731,3.9719,165.18,165.09,8.35259779]
[1729526441938,3.028,165.15,165.12,3.0284]
[1729526443438,3.9719,165.18,165.17,3.0276]
[1729526443738,3.9719,165.18,165.09,5.3]
[1729526444039,3.9719,165.18,165.15,3.0278]
[1729526444639,6.9994,165.18,165.15,3.0278]
[1729526444939,3.9719,165.18,165.14,3.028]
[1729526445343,3.0277,165.17,165.14,3.028]
[1729526445534,2.6865,165.18,165.09,5.3]
[1729526445836,2.6865,165.18,165.09,8.35194048]
[1729526446029,2.6865,165.18,165.09,5.3]
[1729526447134,2.6865,165.18,165.15,3.0278]
[1729526447639,2.6865,165.18,165.09,5.3]
[1729526447640,1.2914,165.22,165.09,5.3]
[1729526447843,1.2914,165.22,165.11,6.0573]
[1729526448240,4.3181,165.22,165.19,3.0271]
[1729526448541,1.2914,165.22,165.15,5.3]
[1729526448943,2.5593,165.27,165.15,5.3]
[1729526449636,3.0264,165.24,165.18,3.0273]
[1729526449836,3.0264,165.24,165.15,5.3]
[1729526450039,2.5593,165.27,165.15,5.3]
[1729526450243,3.0267,165.23,165.19,3.0271]
[1729526450444,2.5593,165.27,165.15,5.3]
[1729526450744,3.027,165.21,165.15,5.3]
[1729526451136,5.28,165.24,165.15,5.3]
[1729526451842,5.28,165.24,165.16,3.0276]
[1729526452144,5.28,165.24,165.15,5.3]
[1729526452337,3.04567922,165.23,165.15,5.3]
[1729526452541,5.28,165.24,165.13,5.28]
[1729526452845,3.08172814,165.23,165.15,3.0278]
[1729526453245,1.3536,165.22,165.15,3.0278]
[1729526453542,1.3536,165.22,165.16,3.0277]
[1729526455949,1.3536,165.22,165.12,5.28]
[1729526456942,1.3536,165.22,165.03,65.44]
[1729526457246,4.44528704,165.22,165.04,7.9079]
[1729526457744,1.3536,165.22,165.04,7.9079]
[1729526458747,5.28,165.24,165.04,7.9079]
[1729526458942,2.5593,165.27,165.04,7.9079]
[1729526458943,5.28,165.25,165.04,7.9079]
[1729526459447,6.6176,165.26,165.04,7.9079]
[1729526461145,18.17,165.25,165.05,5.28]
[1729526462350,18.17,165.25,165.04,2.6279]
[1729526462548,18.17,165.25,165.06,5.28]
[1729526464340,18.17,165.25,165.04,2.6279]
[1729526464645,1.0,165.24,165.04,7.9079]
[1729526465350,1.0,165.24,165.04,1.3075]
[1729526465549,18.17,165.22,165.0,1.2979]
[1729526465749,18.17,165.2,164.96,65.44]
[1729526465953,69.3343,165.19,164.97,5.28]
[1729526466146,23.47,165.18,164.97,5.28]
[1729526466850,23.47,165.18,164.95,5.3]
[1729526467145,18.17,165.1,164.95,5.3]
[1729526467349,44.2373,165.09,164.83,2.4744]
[1729526467547,44.2373,165.09,164.84,5.3]
[1729526467548,36.33,165.07,164.84,5.3]
[1729526467751,36.33,165.05,164.85,5.3]
[1729526467951,18.16,165.03,164.85,5.3]
[1729526468153,6.5762,165.02,164.85,5.3]
[1729526468746,7.795,165.01,164.85,5.3]
[1729526468952,1.2762,165.02,164.85,5.3]
[1729526470152,3.08747358,165.01,164.85,5.3]
[1729526471346,1.2762,165.02,164.85,5.3]
[1729526471753,1.2875,165.05,164.85,5.3]
[1729526471949,65.46,165.14,164.85,5.3]
[1729526471950,5.3,165.08,164.85,5.3]
[1729526472141,1.3564,165.09,164.86,1.11447727]
[1729526472347,4.41566501,165.09,164.86,1.11447727]
[1729526472547,1.3564,165.09,164.85,5.3]
[1729526472746,4.38168506,165.09,164.85,5.3]
[1729526474055,5.3,165.11,164.85,5.3]
[1729526474264,6.6125,165.11,164.85,5.3]
[1729526474849,9.58410869,165.11,164.86,1.11446688]
[1729526475056,9.58410869,165.11,164.85,5.3]
[1729526475353,9.58410869,165.11,164.86,1.11442691]
[1729526475657,4.28410869,165.11,164.86,1.11442691]
[1729526475956,4.28410869,165.11,164.86,2.63078316]
[1729526476153,4.28410869,165.11,164.87,2.58265461]
[1729526476356,4.28410869,165.11,164.88,1.11431588]
[1729526476559,4.28410869,165.11,164.89,5.3]
[1729526478252,1.3005,165.13,164.89,5.3]
[1729526478455,1.3005,165.13,164.9,3.69686471]
[1729526478656,1.3005,165.13,164.91,2.58265461]
[1729526478855,1.3005,165.13,164.92,68.08265461]
[1729526479051,1.3005,165.13,164.93,7.88265461]
[1729526479259,1.3005,165.13,164.93,13.54229719]
[1729526479461,1.3005,165.13,164.93,5.3]
[1729526479662,1.3005,165.13,164.93,7.88988406]
[1729526479862,1.3005,165.13,164.93,5.3]
[1729526480160,5.3,165.16,164.93,13.54838216]
[1729526480551,6.541,165.17,164.93,13.54838216]
[1729526480753,6.541,165.17,164.94,2.58955738]
[1729526481253,6.541,165.17,164.95,2.58955738]
[1729526481458,6.541,165.17,164.94,2.58955738]
[1729526481855,6.541,165.17,164.95,2.58955738]
[1729526482057,6.541,165.17,164.93,10.95882478]
[1729526482058,6.541,165.17,164.94,2.58955738]
[1729526482358,6.541,165.17,164.93,12.03251792]
[1729526482853,6.541,165.17,164.93,13.54851491]
[1729526483059,6.541,165.17,164.93,5.3]
[1729526483255,6.541,165.17,164.93,6.81590067]
[1729526483454,6.541,165.17,164.94,2.59154084]
[1729526483860,42.871,165.17,164.94,2.59154084]
[1729526484051,42.871,165.17,164.95,5.3]
[1729526484956,26.80782626,165.16,164.95,5.3]
[1729526485158,18.16,165.16,164.95,5.3]
[1729526487364,18.16,165.16,164.96,5.3]
[1729526487764,5.3,165.15,164.96,5.3]
[1729526488561,18.16,165.16,164.96,5.3]
[1729526488763,6.541,165.17,164.96,5.3]
[1729526489763,5.3,165.16,164.96,5.3]
[1729526490470,6.541,165.17,164.96,5.3]
[1729526490668,1.241,165.17,164.96,5.3]
[1729526490860,1.241,165.17,164.96,7.89156938]
[1729526491066,1.241,165.17,164.96,5.3]
[1729526491263,1.241,165.17,164.96,7.89156938]
[1729526491572,1.241,165.17,164.97,2.59156938]
[1729526493967,1.241,165.17,164.96,5.3]
[1729526494276,1.241,165.17,164.97,2.59151675]
[1729526496770,1.241,165.17,164.98,2.5579]
[1729526499573,1.241,165.17,164.99,2.59209738]
[1729526499870,1.241,165.17,165.0,5.38]
[1729526502474,1.241,165.17,164.98,2.5579]
[1729526502672,1.241,165.17,164.99,5.38]
[1729526508984,6.621,165.17,164.95,2.59232683]
[1729526509182,6.621,165.17,164.96,5.38]
[1729526509379,1.241,165.17,164.96,5.38]
[1729526509575,5.38,165.16,164.96,5.38]
[1729526510181,1.241,165.17,164.96,7.97232683]
[1729526510378,6.621,165.17,164.97,2.59232683]
[1729526511881,1.241,165.17,164.97,2.59232683]
[1729526512181,1.241,165.17,164.97,1.51566646]
[1729526512372,1.241,165.17,164.99,18.17]
[1729526512574,1.241,165.17,165.0,7.97054788]
[1729526512782,1.241,165.17,165.01,2.59054788]
[1729526513079,1.241,165.17,165.02,2.59054788]
[1729526513272,1.241,165.17,165.03,2.5274]
[1729526513680,1.241,165.17,165.04,2.99859972]
[1729526513879,1.241,165.17,165.04,8.37859972]
[1729526514069,1.241,165.17,165.04,5.38]
[1729526514779,1.241,165.17,165.04,8.39271996]
[1729526517285,1.241,165.17,165.04,5.38]
[1729526517490,6.621,165.17,165.04,5.38]
[1729526520285,24.781,165.17,164.98,1.3387]
[1729526520491,24.781,165.17,164.99,5.38]
[1729526520892,42.951,165.17,164.94,3.90914788]
[1729526521091,18.16,165.15,164.95,5.38]
[1729526521985,36.33,165.15,164.95,5.38]
[1729526522188,36.33,165.13,164.91,1.2916]
[1729526522392,8.65388789,165.14,164.93,5.38]
[1729526522393,18.16,165.11,164.93,5.38]
[1729526522587,20.7735,165.1,164.93,5.38]
[1729526523693,2.6135,165.1,164.94,5.38]
[1729526524189,20.7835,165.1,164.94,5.38]
[1729526524792,38.9435,165.1,164.83,3.33922797]
[1729526524988,36.33,165.08,164.84,10.53233316]
[1729526525192,23.55,165.07,164.84,16.20722642]
[1729526525387,23.55,165.07,164.84,10.53233316]
[1729526525695,5.38,165.06,164.84,10.53233316]
[1729526529693,2.6135,165.1,164.84,10.53233316]
[1729526529888,5.22,165.09,164.84,7.9337]
[1729526530191,5.22,165.09,164.85,2.59460027]
[1729526530387,5.22,165.09,164.86,2.59460027]
[1729526530584,5.22,165.09,164.85,2.59460027]
[1729526530795,5.22,165.09,164.86,2.59460027]
[1729526531088,2.6135,165.1,164.85,2.59460027]
[1729526531288,2.6135,165.1,164.84,26.1037]
[1729526531686,2.6135,165.1,164.86,1.0]
[1729526531890,2.6135,165.1,164.87,1.11446695]
[1729526532091,2.6135,165.1,164.88,5.22]
[1729526532287,2.6135,165.1,164.88,7.81248073]
[1729526532488,2.6135,165.1,164.9,3.33284017]
[1729526532688,2.6135,165.1,164.91,2.59248073]
[1729526532990,1.351,165.12,164.92,7.81248073]
[1729526533183,1.351,165.12,164.93,5.22778073]
[1729526533389,1.351,165.12,164.94,2.59248073]
[1729526533589,1.351,165.12,164.95,68.09248073]
[1729526533882,1.351,165.12,164.96,13.47675005]
[1729526534093,1.351,165.12,164.96,11.96095451]
[1729526534298,1.351,165.12,164.96,13.47660774]
[1729526535996,3.05352066,165.11,164.96,5.22]
[1729526536191,1.351,165.12,164.96,7.81234105]
[1729526536399,1.351,165.12,164.96,13.47562604]
[1729526536595,1.351,165.12,164.96,9.32803856]
[1729526536788,1.351,165.12,164.96,7.81234105]
[1729526538197,2.5767,165.17,164.97,2.59234105]
[1729526538401,2.5767,165.17,164.98,2.59234105]
[1729526538600,2.5767,165.17,164.99,2.59234105]
[1729526538899,2.5767,165.17,165.0,7.8692]
[1729526539801,2.5767,165.17,165.0,10.90362669]
[1729526540493,2.5767,165.17,165.0,5.68362669]
[1729526540701,5.22,165.16,165.01,5.22]
[1729526541194,5.22,165.15,165.02,5.22]
[1729526542190,2.5767,165.17,165.02,5.22]
[1729526543297,2.5767,165.17,165.02,7.81453526]
[1729526543502,2.5767,165.17,165.02,5.22]
[1729526545299,1.23,165.19,165.02,7.81508155]
[1729526545493,9.1039,165.25,165.03,2.59508155]
[1729526545699,12.11686639,165.25,165.04,2.59508155]
[1729526545896,6.89686639,165.25,165.05,2.59508155]
[1729526546101,6.89686639,165.25,165.06,7.81508155]
[1729526546300,1.3545,165.25,165.07,73.29508155]
[1729526546499,3.8839,165.31,165.08,13.48319222]
[1729526546700,3.8839,165.31,165.09,5.22428155]
[1729526546906,3.8839,165.31,165.1,2.59508155]
[1729526547200,3.8839,165.31,165.09,8.23323976]
[1729526547394,3.8839,165.31,165.09,5.63815821]
[1729526547598,3.8839,165.31,165.1,2.58778698]
[1729526547805,3.8839,165.31,165.11,2.58778698]
[1729526548102,3.8839,165.31,165.12,5.22]
[1729526552002,6.909,165.31,165.12,11.2769]
[1729526552396,6.909,165.31,165.12,5.22]
[1729526552397,1.3545,165.31,165.12,5.22]
[1729526552602,2.5749,165.37,165.34,3.0244]
[1729526552798,1.3341,165.4,165.31,5.22]
[1729526553305,7.53129141,165.43,165.31,5.22]
[1729526553500,7.53129141,165.43,165.31,8.18682827]
[1729526553705,7.53129141,165.43,165.42,3.023]
[1729526553899,7.53129141,165.43,165.42,8.243]
[1729526554903,7.53129141,165.43,165.41,8.2432]
[1729526555207,7.53129141,165.43,165.41,5.22]
[1729526555408,7.53129141,165.43,165.4,5.22]
[1729526555607,7.53129141,165.43,165.39,5.22]